[Event "ESTCC-50 2025"]
[Site "Swidnica"]
[Date "2025.04.13"]
[Round "9.1"]
[White "Bischoff, Klaus"]
[Black "Adams, Michael"]
[Result "1/2-1/2"]
[Annotator "ChessBase"]
[ECO "E49"]
[WhiteElo "2425"]
[BlackElo "2661"]
[PlyCount "54"]
[EventDate "2025.04.05"]
[EventType "team-tourn"]
[EventCountry "POL"]
[SourceTitle "playchess.com"]
[Source "ChessBase"]
[SourceQuality "1"]
[WhiteTeam "Germany"]
[BlackTeam "England"]
[WhiteTeamCountry "GER"]
[BlackTeamCountry "ENG"]
[TimeControl "40/5400+30:1800+30"]

1. d4 {[%emt 0:00:08]} Nf6 {[%emt 0:00:06]} 2. c4 {[%emt 0:00:11]} e6 {[%emt 0:00:04]} 3. Nc3 {[%emt 0:00:28]} Bb4 {[%emt 0:00:08]} 4. e3 {[%emt 0:00:36]} O-O {[%emt 0:00:17]} 5. Bd3 {[%emt 0:00:08]} d5 {[%emt 0:00:06]} 6. a3 {[%emt 0:00:53]} Bxc3+ {[%emt 0:00:15]} 7. bxc3 {[%emt 0:00:08]} dxc4 {[%emt 0:00:14]} 8. Bxc4 {[%emt 0:00:10]} c5 {[%emt 0:00:07]} 9. Bb2 {[%emt 0:01:00]} Qa5 {[%emt 0:04:55]} 10. Nf3 {[%emt 0:03:20]} cxd4 {[%emt 0:00:54]} 11. exd4 {[%emt 0:00:16]} b6 {[%emt 0:04:28]} 12. Qe2 {[%emt 0:24:17]} Ba6 {[%emt 0:10:03]} 13. Bxa6 {[%emt 0:01:33]} Nxa6 {[%emt 0:00:34]} 14. a4 {[%emt 0:02:02]} Nc7 {[%emt 0:06:14]} 15. O-O {[%emt 0:01:23]} Ncd5 {[%emt 0:04:48]} 16. c4 {[%emt 0:01:22]} Nf4 {[%emt 0:00:13]} 17. Qe3 {[%emt 0:01:30]} Qf5 {[%emt 0:00:42]} 18. h3 {[%emt 0:03:26]} Rfc8 {[%emt 0:07:08]} 19. Bc1 {[%emt 0:10:18]} Ng6 {[%emt 0:09:40]} 20. Qb3 {[%emt 0:02:32]} Rc7 21. Be3 {[%emt 0:09:00]} Rac8 {[%emt 0:04:59]} 22. Rfc1 {[%emt 0:00:11]} Nf4 {[%emt 0:14:34]} 23. Bxf4 {[%emt 0:01:01]} Qxf4 {[%emt 0:00:04]} 24. a5 {[%emt 0:01:55]} Nd7 {[%emt 0:00:38]} 25. axb6 {[%emt 0:00:44]} axb6 {[%emt 0:00:03]} 26. Qb5 {[%emt 0:04:56]} g6 {[%emt 0:02:53]} 27. Re1 {[%emt 0:04:27]} Qd6 {[%emt 0:07:16]} 1/2-1/2

[Event "ESTCC-50 2025"]
[Site "Swidnica"]
[Date "2025.04.13"]
[Round "9.2"]
[White "Emms, John M"]
[Black "Holzke, Frank"]
[Result "1/2-1/2"]
[Annotator "ChessBase"]
[ECO "B31"]
[WhiteElo "2411"]
[BlackElo "2412"]
[PlyCount "33"]
[EventDate "2025.04.05"]
[EventType "team-tourn"]
[EventCountry "POL"]
[SourceTitle "playchess.com"]
[Source "ChessBase"]
[SourceQuality "1"]
[WhiteTeam "England"]
[BlackTeam "Germany"]
[WhiteTeamCountry "ENG"]
[BlackTeamCountry "GER"]
[TimeControl "40/5400+30:1800+30"]

1. e4 {[%emt 0:00:10]} c5 {[%emt 0:00:08]} 2. Nf3 {[%emt 0:00:19]} Nc6 {[%emt 0:00:15]} 3. Bb5 {[%emt 0:00:22]} g6 {[%emt 0:00:29]} 4. O-O {[%emt 0:00:42]} Bg7 {[%emt 0:00:13]} 5. c3 {[%emt 0:00:28]} Nf6 {[%emt 0:00:48]} 6. Re1 {[%emt 0:00:59]} O-O {[%emt 0:00:53]} 7. d4 {[%emt 0:00:57]} cxd4 {[%emt 0:01:01]} 8. cxd4 {[%emt 0:00:30]} d5 {[%emt 0:00:35]} 9. e5 {[%emt 0:01:08]} Ne4 {[%emt 0:00:55]} 10. Bxc6 {[%emt 0:01:17]} bxc6 {[%emt 0:00:16]} 11. Be3 {[%emt 0:00:06]} Qb6 {[%emt 0:07:30]} 12. Qc1 {[%emt 0:00:57]} Rb8 {[%emt 0:01:43]} 13. b3 {[%emt 0:01:28]} a5 {[%emt 0:01:25]} 14. Nc3 {[%emt 0:03:09]} Nxc3 {[%emt 0:06:53]} 15. Qxc3 {[%emt 0:00:05]} Ba6 {[%emt 0:01:28]} 16. Rac1 {[%emt 0:15:34]} Rfc8 {[%emt 0:00:48]} 17. Bg5 {[%emt 0:05:00]} 1/2-1/2

[Event "ESTCC-50 2025"]
[Site "Swidnica"]
[Date "2025.04.13"]
[Round "9.3"]
[White "Boensch, Uwe"]
[Black "Flear, Glenn C"]
[Result "1/2-1/2"]
[Annotator "ChessBase"]
[ECO "D35"]
[WhiteElo "2465"]
[BlackElo "2366"]
[PlyCount "29"]
[EventDate "2025.04.05"]
[EventType "team-tourn"]
[EventCountry "POL"]
[SourceTitle "playchess.com"]
[Source "ChessBase"]
[SourceQuality "1"]
[WhiteTeam "Germany"]
[BlackTeam "England"]
[WhiteTeamCountry "GER"]
[BlackTeamCountry "ENG"]
[TimeControl "40/5400+30:1800+30"]

1. d4 {[%emt 0:00:02]} d5 {[%emt 0:00:27]} 2. c4 {[%emt 0:00:03]} e6 {[%emt 0:00:10]} 3. Nc3 {[%emt 0:00:09]} Nf6 {[%emt 0:00:14]} 4. cxd5 {[%emt 0:00:09]} exd5 {[%emt 0:00:13]} 5. Bg5 {[%emt 0:00:06]} Be7 {[%emt 0:00:20]} 6. e3 {[%emt 0:00:08]} O-O {[%emt 0:01:00]} 7. Bd3 {[%emt 0:00:10]} Re8 {[%emt 0:00:30]} 8. Qc2 {[%emt 0:04:31]} h6 {[%emt 0:00:40]} 9. Bh4 {[%emt 0:01:18]} c6 {[%emt 0:00:32]} 10. Nf3 {[%emt 0:07:04]} Ne4 {[%emt 0:02:11]} 11. Bxe7 {[%emt 0:04:18]} Qxe7 {[%emt 0:00:24]} 12. O-O {[%emt 0:00:09]} Bf5 {[%emt 0:08:14]} 13. Rfe1 {[%emt 0:08:12]} Nd7 {[%emt 0:07:19]} 14. Nd2 {[%emt 0:00:59]} Bg6 {[%emt 0:06:16]} 15. Nf1 {[%emt 0:17:10]} 1/2-1/2

[Event "ESTCC-50 2025"]
[Site "Swidnica"]
[Date "2025.04.13"]
[Round "9.4"]
[White "Davies, Nigel R"]
[Black "Tischbierek, Raj"]
[Result "1/2-1/2"]
[Annotator "ChessBase"]
[ECO "A46"]
[WhiteElo "2309"]
[BlackElo "2418"]
[PlyCount "27"]
[EventDate "2025.04.05"]
[EventType "team-tourn"]
[EventCountry "POL"]
[SourceTitle "playchess.com"]
[Source "ChessBase"]
[SourceQuality "1"]
[WhiteTeam "England"]
[BlackTeam "Germany"]
[WhiteTeamCountry "ENG"]
[BlackTeamCountry "GER"]
[TimeControl "40/5400+30:1800+30"]

1. d4 {[%emt 0:01:01]} Nf6 {[%emt 0:00:26]} 2. Nf3 {[%emt 0:00:08]} d5 {[%emt 0:00:17]} 3. c4 {[%emt 0:00:09]} e6 {[%emt 0:00:32]} 4. e3 {[%emt 0:02:18]} Be7 {[%emt 0:02:11]} 5. Nc3 {[%emt 0:00:48]} O-O {[%emt 0:01:24]} 6. Bd3 {[%emt 0:01:40]} c5 {[%emt 0:05:33]} 7. O-O {[%emt 0:02:58]} cxd4 {[%emt 0:12:17]} 8. exd4 {[%emt 0:00:10]} dxc4 {[%emt 0:00:08]} 9. Bxc4 {[%emt 0:00:08]} Nc6 {[%emt 0:00:17]} 10. a3 {[%emt 0:01:33]} b6 {[%emt 0:01:32]} 11. d5 {[%emt 0:07:02]} Na5 {[%emt 0:07:54]} 12. Ba2 {[%emt 0:00:08]} exd5 {[%emt 0:00:50]} 13. Nxd5 {[%emt 0:00:22]} Nxd5 {[%emt 0:03:13]} 14. Bxd5 {[%emt 0:00:14]} 1/2-1/2

[Event "ESTCC-50 2025"]
[Site "Swidnica"]
[Date "2025.04.13"]
[Round "9.5"]
[White "Zeidler, Sven P."]
[Black "Buckley, Graeme N"]
[Result "1/2-1/2"]
[Annotator "ChessBase"]
[ECO "B23"]
[WhiteElo "2143"]
[BlackElo "2268"]
[PlyCount "97"]
[EventDate "2025.04.05"]
[EventType "team-tourn"]
[EventCountry "POL"]
[SourceTitle "playchess.com"]
[Source "ChessBase"]
[SourceQuality "1"]
[WhiteTeam "Wales"]
[BlackTeam "England"]
[WhiteTeamCountry "WLS"]
[BlackTeamCountry "ENG"]
[TimeControl "40/5400+30:1800+30"]

1. e4 {[%emt 0:00:03]} c5 {[%emt 0:00:02]} 2. Nc3 {[%emt 0:00:06]} Nc6 {[%emt 0:00:05]} 3. f4 {[%emt 0:00:05]} g6 {[%emt 0:00:10]} 4. Nf3 {[%emt 0:00:06]} Bg7 {[%emt 0:00:06]} 5. Bb5 {[%emt 0:00:06]} Nd4 {[%emt 0:00:07]} 6. O-O {[%emt 0:00:12]} a6 {[%emt 0:01:26]} 7. Bd3 {[%emt 0:00:10]} d6 {[%emt 0:00:43]} 8. b3 {[%emt 0:00:13]} Nf6 {[%emt 0:17:48]} 9. Rb1 {[%emt 0:01:09]} O-O {[%emt 0:08:10]} 10. Bb2 {[%emt 0:02:33]} b5 {[%emt 0:10:11]} 11. a4 {[%emt 0:23:17]} Bb7 {[%emt 0:10:11]} 12. axb5 {[%emt 0:07:36]} axb5 {[%emt 0:00:02]} 13. Nxd4 {[%emt 0:00:55]} cxd4 {[%emt 0:00:08]} 14. Nxb5 {[%emt 0:00:39]} Nxe4 {[%emt 0:04:34]} 15. Qe2 {[%emt 0:01:54]} Qb6 {[%emt 0:01:13]} 16. Bxe4 {[%emt 0:14:40]} d3+ {[%emt 0:01:36]} 17. Qf2 {[%emt 0:00:13]} Qxf2+ {[%emt 0:00:33]} 18. Kxf2 {[%emt 0:00:18]} Bxe4 {[%emt 0:00:27]} 19. c4 {[%emt 0:00:29]} Bh6 {[%emt 0:08:42]} 20. g3 {[%emt 0:04:18]} Rab8 {[%emt 0:05:13]} 21. Rfe1 {[%emt 0:05:31]} f5 {[%emt 0:00:44]} 22. Ba3 {[%emt 0:04:56]} Rb7 {[%emt 0:02:54]} 23. Nc3 {[%emt 0:11:53]} Ra8 {[%emt 0:00:56]} 24. Nxe4 {[%emt 0:00:38]} fxe4 {[%emt 0:05:37]} 25. Bc1 {[%emt 0:00:41]} Rab8 {[%emt 0:07:04]} 26. Rxe4 {[%emt 0:00:40]} Kf7 {[%emt 0:00:07]} 27. c5 {[%emt 0:07:35]} dxc5 {[%emt 0:01:48]} 28. Ba3 {[%emt 0:00:15]} Rc8 {[%emt 0:06:27]} 29. Rc1 {[%emt 0:01:35]} Rb5 {[%emt 0:01:55]} 30. Ke3 {[%emt 0:03:18]} Bg7 {[%emt 0:00:43]} 31. Rec4 {[%emt 0:01:41]} Rxb3 {[%emt 0:03:55]} 32. Bxc5 {[%emt 0:00:45]} Bb2 {[%emt 0:00:40]} 33. Bd4 {[%emt 0:01:22]} Bxd4+ {[%emt 0:00:59]} 34. Kxd4 {[%emt 0:00:14]} Rd8+ {[%emt 0:00:39]} 35. Ke3 {[%emt 0:00:24]} Rb6 {[%emt 0:01:26]} 36. Rd4 {[%emt 0:01:03]} Re6+ {[%emt 0:00:24]} 37. Re4 {[%emt 0:00:12]} Rdd6 {[%emt 0:00:41]} 38. Rc3 {[%emt 0:04:03]} Rxe4+ {[%emt 0:00:19]} 39. Kxe4 {[%emt 0:00:09]} Re6+ {[%emt 0:00:08]} 40. Kxd3 Re1 {[%emt 0:00:00]} 41. h4 {[%emt 0:03:20]} Kf6 {[%emt 0:05:56]} 42. Kd4 {[%emt 0:02:35]} Re2 {[%emt 0:01:55]} 43. Kd3 {[%emt 0:04:29]} Rg2 {[%emt 0:00:18]} 44. Ke4 {[%emt 0:03:27]} Rxd2 {[%emt 0:00:46]} 45. Rc6+ {[%emt 0:00:53]} Kf7 {[%emt 0:00:51]} 46. h5 {[%emt 0:02:25]} Ra2 {[%emt 0:01:20]} 47. hxg6+ {[%emt 0:01:19]} hxg6 {[%emt 0:00:02]} 48. Kf3 {[%emt 0:00:57]} Ra3+ {[%emt 0:00:59]} 49. Ke4 1/2-1/2

[Event "ESTCC-50 2025"]
[Site "Swidnica"]
[Date "2025.04.13"]
[Round "9.6"]
[White "Duncan, Chris R"]
[Black "Fletcher, John"]
[Result "1-0"]
[Annotator "ChessBase"]
[ECO "B24"]
[WhiteElo "2178"]
[BlackElo "1989"]
[PlyCount "64"]
[EventDate "2025.04.05"]
[EventType "team-tourn"]
[EventCountry "POL"]
[SourceTitle "playchess.com"]
[Source "ChessBase"]
[SourceQuality "1"]
[WhiteTeam "England"]
[BlackTeam "Wales"]
[WhiteTeamCountry "ENG"]
[BlackTeamCountry "WLS"]
[TimeControl "40/5400+30:1800+30"]

1. e4 {[%emt 0:00:02]} c5 {[%emt 0:04:10]} 2. Nc3 {[%emt 0:00:06]} Nc6 {[%emt 0:00:06]} 3. Bb5 {[%emt 0:00:05]} Nd4 {[%emt 0:01:10]} 4. Nf3 {[%emt 0:00:07]} Nf6 {[%emt 0:03:36]} 5. e5 {[%emt 0:05:51]} Ng4 {[%emt 0:04:47]} 6. Nxd4 {[%emt 0:02:07]} cxd4 {[%emt 0:02:07]} 7. Qxg4 {[%emt 0:00:47]} dxc3 {[%emt 0:00:03]} 8. dxc3 {[%emt 0:02:43]} Qa5 {[%emt 0:01:14]} 9. Qe2 {[%emt 0:04:20]} g6 {[%emt 0:05:10]} 10. O-O {[%emt 0:01:38]} Bg7 {[%emt 0:00:56]} 11. Re1 {[%emt 0:00:52]} O-O {[%emt 0:04:11]} 12. Bg5 {[%emt 0:08:19]} a6 {[%emt 0:04:05]} 13. Bc4 {[%emt 0:01:31]} d5 {[%emt 0:00:39]} 14. Bb3 {[%emt 0:15:12]} Re8 {[%emt 0:02:20]} 15. Rad1 {[%emt 0:00:41]} Be6 {[%emt 0:01:19]} 16. Rd4 {[%emt 0:06:02]} Rad8 {[%emt 0:05:00]} 17. Qd2 {[%emt 0:02:10]} Rd7 {[%emt 0:08:19]} 18. Bh6 {[%emt 0:03:29]} Bh8 {[%emt 0:03:56]} 19. h4 {[%emt 0:00:46]} Qc7 {[%emt 0:04:09]} 20. Bxd5 {[%emt 0:11:16]} Bxd5 {[%emt 0:03:32]} 21. Rxd5 {[%emt 0:00:22]} Red8 {[%emt 0:01:54]} 22. Rxd7 {[%emt 0:01:19]} Rxd7 {[%emt 0:00:02]} 23. Qe3 {[%emt 0:00:23]} e6 {[%emt 0:00:42]} 24. b3 {[%emt 0:04:18]} b5 {[%emt 0:01:05]} 25. Qe4 {[%emt 0:06:27]} Qb8 26. f4 {[%emt 0:09:05]} Rd2 {[%emt 0:08:05]} 27. Kh2 {[%emt 0:00:25]} Qc8 {[%emt 0:01:01]} 28. Re3 {[%emt 0:01:15]} Qd8 {[%emt 0:05:16]} 29. Bg5 {[%emt 0:00:10]} Qb6 {[%emt 0:00:04]} 30. Rd3 {[%emt 0:00:56]} Qf2 {[%emt 0:02:19]} 31. Rxd2 {[%emt 0:01:44]} Qxd2 {[%emt 0:00:08]} 32. f5 {[%emt 0:02:46]} Qc1 {[%emt 0:01:54]} 1-0

[Event "ESTCC-50 2025"]
[Site "Swidnica"]
[Date "2025.04.13"]
[Round "9.7"]
[White "Adams, Mark"]
[Black "Crocker, Philip J"]
[Result "1/2-1/2"]
[Annotator "ChessBase"]
[ECO "C47"]
[WhiteElo "1916"]
[BlackElo "2137"]
[PlyCount "26"]
[EventDate "2025.04.05"]
[EventType "team-tourn"]
[EventCountry "POL"]
[SourceTitle "playchess.com"]
[Source "ChessBase"]
[SourceQuality "1"]
[WhiteTeam "Wales"]
[BlackTeam "England"]
[WhiteTeamCountry "WLS"]
[BlackTeamCountry "ENG"]
[TimeControl "40/5400+30:1800+30"]

1. e4 {[%emt 0:00:18]} e5 {[%emt 0:00:06]} 2. Nf3 {[%emt 0:00:13]} Nc6 {[%emt 0:00:04]} 3. Nc3 {[%emt 0:00:23]} Nf6 {[%emt 0:00:17]} 4. d4 {[%emt 0:00:21]} exd4 {[%emt 0:00:04]} 5. Nxd4 {[%emt 0:00:07]} Bb4 {[%emt 0:00:26]} 6. Nxc6 {[%emt 0:00:10]} bxc6 {[%emt 0:00:05]} 7. Bd3 {[%emt 0:00:06]} O-O {[%emt 0:00:14]} 8. O-O {[%emt 0:01:50]} Re8 {[%emt 0:00:09]} 9. Qf3 {[%emt 0:03:02]} h6 {[%emt 0:01:37]} 10. h3 {[%emt 0:00:26]} d6 {[%emt 0:01:52]} 11. Ne2 {[%emt 0:06:05]} Nd7 {[%emt 0:07:11]} 12. Qg3 {[%emt 0:09:59]} Qf6 {[%emt 0:08:38]} 13. c3 {[%emt 0:05:33]} Bc5 {[%emt 0:01:28]} 1/2-1/2

[Event "ESTCC-50 2025"]
[Site "Swidnica"]
[Date "2025.04.13"]
[Round "9.8"]
[White "Noyce, Robert C"]
[Black "Van Kemenade, Rudy"]
[Result "1/2-1/2"]
[Annotator "NA"]
[ECO "A25"]
[WhiteElo "2065"]
[BlackElo "1945"]
[PlyCount "29"]
[EventDate "2025.04.05"]
[EventType "team-tourn"]
[EventCountry "POL"]
[SourceTitle "playchess.com"]
[Source "ChessBase"]
[SourceQuality "1"]
[WhiteTeam "England"]
[BlackTeam "Wales"]
[WhiteTeamCountry "ENG"]
[BlackTeamCountry "WLS"]
[TimeControl "40/5400+30:1800+30"]

1. c4 {[%emt 0:00:03]} e5 {[%emt 0:00:13]} 2. Nc3 {[%emt 0:00:07]} Nc6 {[%emt 0:00:06]} 3. g3 {[%emt 0:00:18]} d6 {[%emt 0:00:07]} 4. Bg2 {[%emt 0:02:00]} g6 {[%emt 0:00:13]} 5. e3 {[%emt 0:05:54]} Bg7 {[%emt 0:00:55]} 6. Nge2 {[%emt 0:00:17]} h5 {[%emt 0:00:15]} 7. h4 {[%emt 0:05:00]} Bg4 {[%emt 0:03:47]} 8. d3 {[%emt 0:01:39]} Qd7 {[%emt 0:01:06]} 9. a3 {[%emt 0:02:24]} a5 {[%emt 0:00:22]} 10. Nd5 {[%emt 0:03:13]} Nge7 {[%emt 0:03:32]} 11. Qc2 {[%emt 0:04:37]} Nd8 {[%emt 0:01:06]} 12. Nec3 {[%emt 0:00:41]} Nxd5 {[%emt 0:06:20]} 13. Nxd5 {[%emt 0:02:11]} Be6 {[%emt 0:00:30]} 14. Bd2 {[%emt 0:02:12]} Ra6 {[%emt 0:04:22]} 15. Rc1 {[%emt 0:06:08]} 1/2-1/2

[Event "ESTCC-50 2025"]
[Site "Swidnica"]
[Date "2025.04.13"]
[Round "9.9"]
[White "Rogowski, Jaroslaw"]
[Black "Zych, Marek"]
[Result "0-1"]
[Annotator "NA"]
[ECO "B33"]
[WhiteElo "2050"]
[BlackElo "1942"]
[PlyCount "122"]
[EventDate "2025.04.05"]
[EventType "team-tourn"]
[EventCountry "POL"]
[SourceTitle "playchess.com"]
[Source "ChessBase"]
[SourceQuality "1"]
[WhiteTeam "Poland"]
[BlackTeam "Poland"]
[WhiteTeamCountry "POL"]
[BlackTeamCountry "POL"]
[TimeControl "40/5400+30:1800+30"]

1. e4 {[%emt 0:00:20]} c5 {[%emt 0:00:12]} 2. Nf3 {[%emt 0:00:06]} Nc6 {[%emt 0:00:10]} 3. d4 {[%emt 0:00:11]} cxd4 {[%emt 0:00:11]} 4. Nxd4 {[%emt 0:00:05]} Nf6 {[%emt 0:00:13]} 5. Nc3 {[%emt 0:00:14]} e5 {[%emt 0:01:51]} 6. Ndb5 {[%emt 0:00:36]} d6 {[%emt 0:01:02]} 7. Bg5 {[%emt 0:00:18]} a6 {[%emt 0:00:15]} 8. Na3 {[%emt 0:00:38]} b5 {[%emt 0:00:17]} 9. Nd5 {[%emt 0:00:11]} Be7 {[%emt 0:00:23]} 10. Bxf6 {[%emt 0:00:11]} Bxf6 {[%emt 0:00:10]} 11. g3 {[%emt 0:02:46]} O-O {[%emt 0:02:22]} 12. h4 {[%emt 0:03:44]} Rb8 {[%emt 0:05:52]} 13. c3 {[%emt 0:15:00]} Be6 {[%emt 0:01:03]} 14. Bh3 {[%emt 0:02:20]} Qd7 {[%emt 0:05:36]} 15. Bxe6 {[%emt 0:08:22]} fxe6 {[%emt 0:00:22]} 16. Ne3 {[%emt 0:24:40]} Bd8 {[%emt 0:02:59]} 17. Nac2 {[%emt 0:04:42]} Bb6 {[%emt 0:02:19]} 18. Qg4 {[%emt 0:05:50]} a5 {[%emt 0:02:12]} 19. O-O {[%emt 0:01:24]} Bc5 {[%emt 0:01:58]} 20. a3 {[%emt 0:01:13]} a4 {[%emt 0:00:56]} 21. Rad1 {[%emt 0:03:42]} Na5 {[%emt 0:01:53]} 22. Kg2 Rf6 {[%emt 0:02:43]} 23. h5 {[%emt 0:07:33]} Qc6 {[%emt 0:01:04]} 24. Rd2 {[%emt 0:04:03]} Nb3 {[%emt 0:03:47]} 25. Rd3 {[%emt 0:06:02]} Rbf8 {[%emt 0:01:24]} 26. f3 {[%emt 0:00:13]} Qb6 {[%emt 0:01:45]} 27. Qg5 {[%emt 0:03:44]} h6 {[%emt 0:01:39]} 28. Qh4 {[%emt 0:00:03]} Na5 {[%emt 0:00:49]} 29. Ng4 {[%emt 0:00:37]} R6f7 {[%emt 0:00:18]} 30. Nce3 {[%emt 0:01:34]} Nc4 {[%emt 0:02:01]} 31. Nd1 {[%emt 0:00:33]} Qc6 {[%emt 0:00:45]} 32. Re1 {[%emt 0:01:37]} Bb6 {[%emt 0:03:12]} 33. Re2 {[%emt 0:01:20]} Qc5 {[%emt 0:03:05]} 34. Qh1 {[%emt 0:00:28]} Bc7 {[%emt 0:01:59]} 35. Qe1 {[%emt 0:01:18]} Kh8 {[%emt 0:04:38]} 36. Nh2 {[%emt 0:00:35]} d5 {[%emt 0:01:57]} 37. Nf2 {[%emt 0:00:54]} d4 {[%emt 0:00:37]} 38. Nd1 {[%emt 0:00:19]} Bb6 {[%emt 0:01:21]} 39. g4 {[%emt 0:00:45]} Qe7 {[%emt 0:00:50]} 40. Nf1 {[%emt 0:00:00]} Qg5 {[%emt 0:00:00]} 41. Nf2 {[%emt 0:08:03]} Qf6 {[%emt 0:04:18]} 42. Nh2 {[%emt 0:04:46]} Ne3+ {[%emt 0:02:32]} 43. Kh1 {[%emt 0:01:26]} Qh4 {[%emt 0:00:41]} 44. Nd1 {[%emt 0:00:31]} Qh3 {[%emt 0:01:04]} 45. Nxe3 {[%emt 0:01:50]} dxe3 {[%emt 0:00:03]} 46. Qf1 {[%emt 0:06:08]} Qxf1+ {[%emt 0:02:48]} 47. Nxf1 {[%emt 0:00:04]} Rxf3 {[%emt 0:00:11]} 48. Nxe3 {[%emt 0:03:11]} Rh3+ {[%emt 0:00:42]} 49. Kg2 {[%emt 0:00:45]} Rff3 {[%emt 0:00:04]} 50. Nd5 {[%emt 0:02:39]} Rxd3 {[%emt 0:00:35]} 51. Nxb6 {[%emt 0:00:12]} Rhg3+ {[%emt 0:00:24]} 52. Kf2 {[%emt 0:02:54]} Rxg4 {[%emt 0:00:48]} 53. c4 {[%emt 0:00:14]} Rf4+ {[%emt 0:01:21]} 54. Kg2 {[%emt 0:01:42]} bxc4 {[%emt 0:00:40]} 55. Nxc4 {[%emt 0:00:16]} Rg4+ {[%emt 0:02:30]} 56. Kf1 {[%emt 0:03:05]} Rh3 {[%emt 0:00:15]} 57. Ke1 {[%emt 0:02:07]} Rxh5 {[%emt 0:00:11]} 58. Nb6 {[%emt 0:00:41]} Rhh4 {[%emt 0:00:23]} 59. Nxa4 {[%emt 0:00:11]} Rxe4 {[%emt 0:00:04]} 60. b4 {[%emt 0:00:29]} Rxe2+ {[%emt 0:00:42]} 61. Kxe2 {[%emt 0:00:01]} Rh3 0-1

[Event "ESTCC-50 2025"]
[Site "Swidnica"]
[Date "2025.04.13"]
[Round "9.10"]
[White "Szmyd, Marek"]
[Black "Ograbek, Grzegorz"]
[Result "0-1"]
[Annotator "ChessBase"]
[ECO "B07"]
[WhiteElo "1900"]
[BlackElo "2068"]
[PlyCount "80"]
[EventDate "2025.04.05"]
[EventType "team-tourn"]
[EventCountry "POL"]
[SourceTitle "playchess.com"]
[Source "ChessBase"]
[SourceQuality "1"]
[WhiteTeam "Poland"]
[BlackTeam "Poland"]
[WhiteTeamCountry "POL"]
[BlackTeamCountry "POL"]
[TimeControl "40/5400+30:1800+30"]

1. e4 {[%emt 0:00:08]} d6 {[%emt 0:00:14]} 2. d4 {[%emt 0:00:11]} Nf6 {[%emt 0:00:16]} 3. Nc3 {[%emt 0:00:09]} e5 {[%emt 0:00:33]} 4. dxe5 {[%emt 0:00:50]} dxe5 {[%emt 0:00:08]} 5. Qxd8+ {[%emt 0:00:44]} Kxd8 {[%emt 0:00:08]} 6. Bc4 {[%emt 0:01:42]} Ke8 {[%emt 0:00:41]} 7. f4 {[%emt 0:17:08]} Bd6 {[%emt 0:04:52]} 8. Nf3 {[%emt 0:02:10]} Nbd7 {[%emt 0:01:16]} 9. O-O {[%emt 0:09:30]} c6 {[%emt 0:03:22]} 10. fxe5 {[%emt 0:04:15]} Nxe5 {[%emt 0:01:06]} 11. Nxe5 {[%emt 0:02:35]} Bxe5 {[%emt 0:00:07]} 12. Bf4 {[%emt 0:00:49]} Bd4+ {[%emt 0:07:23]} 13. Kh1 {[%emt 0:00:38]} b5 {[%emt 0:00:20]} 14. Bd3 {[%emt 0:23:20]} Be6 {[%emt 0:00:38]} 15. Nd1 {[%emt 0:04:21]} Nd7 {[%emt 0:04:36]} 16. c3 {[%emt 0:04:07]} Be5 {[%emt 0:00:26]} 17. Bxe5 {[%emt 0:05:46]} Nxe5 {[%emt 0:00:07]} 18. Be2 {[%emt 0:01:07]} Ke7 {[%emt 0:00:33]} 19. Ne3 {[%emt 0:04:33]} Rhd8 {[%emt 0:12:22]} 20. Nf5+ {[%emt 0:01:00]} Bxf5 {[%emt 0:00:55]} 21. Rxf5 {[%emt 0:00:05]} f6 {[%emt 0:00:21]} 22. a4 {[%emt 0:02:26]} Rd2 {[%emt 0:11:54]} 23. Bf1 {[%emt 0:02:40]} Rxb2 {[%emt 0:02:18]} 24. Kg1 {[%emt 0:01:28]} b4 {[%emt 0:01:11]} 25. cxb4 {[%emt 0:01:25]} Rxb4 {[%emt 0:00:51]} 26. Rh5 {[%emt 0:00:30]} h6 {[%emt 0:01:17]} 27. Rh3 {[%emt 0:00:12]} Rd8 {[%emt 0:06:15]} 28. Rg3 {[%emt 0:01:25]} g6 {[%emt 0:00:12]} 29. Re3 {[%emt 0:00:42]} a5 {[%emt 0:00:20]} 30. h4 {[%emt 0:02:03]} h5 {[%emt 0:00:23]} 31. g3 {[%emt 0:01:52]} Rdd4 {[%emt 0:00:21]} 32. Rea3 {[%emt 0:01:14]} Kd6 {[%emt 0:14:08]} 33. Bg2 {[%emt 0:00:46]} c5 {[%emt 0:04:05]} 34. R3a2 {[%emt 0:01:59]} Rb3 {[%emt 0:05:35]} 35. Rf1 {[%emt 0:01:36]} Ke7 {[%emt 0:00:17]} 36. Kh2 {[%emt 0:01:22]} Ng4+ {[%emt 0:01:24]} 37. Kh1 {[%emt 0:00:28]} Rxg3 {[%emt 0:03:22]} 38. Rc1 {[%emt 0:01:08]} Kd6 {[%emt 0:02:15]} 39. Rac2 {[%emt 0:00:51]} Rgd3 {[%emt 0:02:05]} 40. e5+ {[%emt 0:00:00]} fxe5 {[%emt 0:00:00]} 0-1

[Event "ESTCC-50 2025"]
[Site "Swidnica"]
[Date "2025.04.13"]
[Round "9.11"]
[White "Czyz, Andrzej"]
[Black "Stec, Czeslaw"]
[Result "1-0"]
[Annotator "NA"]
[ECO "D30"]
[WhiteElo "1985"]
[BlackElo "1820"]
[PlyCount "50"]
[EventDate "2025.04.05"]
[EventType "team-tourn"]
[EventCountry "POL"]
[SourceTitle "playchess.com"]
[Source "ChessBase"]
[SourceQuality "1"]
[WhiteTeam "Poland"]
[BlackTeam "Poland"]
[WhiteTeamCountry "POL"]
[BlackTeamCountry "POL"]
[TimeControl "40/5400+30:1800+30"]

1. d4 {[%emt 0:00:04]} d5 {[%emt 0:00:17]} 2. c4 {[%emt 0:00:06]} e6 {[%emt 0:00:08]} 3. Nf3 {[%emt 0:00:35]} c5 {[%emt 0:00:11]} 4. cxd5 {[%emt 0:00:21]} exd5 {[%emt 0:00:10]} 5. g3 {[%emt 0:00:15]} Nc6 {[%emt 0:00:23]} 6. Bg2 {[%emt 0:01:34]} Nf6 {[%emt 0:00:54]} 7. O-O {[%emt 0:00:29]} cxd4 {[%emt 0:01:39]} 8. Nxd4 {[%emt 0:00:15]} Bc5 {[%emt 0:00:11]} 9. Nxc6 {[%emt 0:00:18]} bxc6 {[%emt 0:00:09]} 10. Qc2 {[%emt 0:00:10]} Qb6 {[%emt 0:00:10]} 11. Nc3 {[%emt 0:05:33]} Be7 {[%emt 0:04:14]} 12. Na4 {[%emt 0:03:44]} Qb5 {[%emt 0:00:55]} 13. Be3 {[%emt 0:04:04]} O-O {[%emt 0:03:48]} 14. b3 {[%emt 0:01:51]} Ba6 {[%emt 0:06:38]} 15. Bf3 {[%emt 0:02:21]} Nd7 {[%emt 0:01:57]} 16. Bd4 {[%emt 0:05:45]} c5 {[%emt 0:08:22]} 17. Nc3 {[%emt 0:03:26]} Qb8 {[%emt 0:05:39]} 18. Nxd5 {[%emt 0:01:02]} Bd6 {[%emt 0:00:12]} 19. Bb2 {[%emt 0:03:19]} Bb7 {[%emt 0:01:49]} 20. Rfd1 {[%emt 0:01:22]} Rd8 {[%emt 0:02:38]} 21. Rd2 {[%emt 0:02:28]} Nb6 {[%emt 0:03:43]} 22. Rad1 {[%emt 0:04:32]} Nxd5 {[%emt 0:04:05]} 23. Bxd5 {[%emt 0:00:57]} Bxd5 {[%emt 0:00:11]} 24. Rxd5 {[%emt 0:00:06]} Qb6 {[%emt 0:00:20]} 25. Qe4 {[%emt 0:13:01]} h6 1-0